fUST/lending_fUST_20240227
["ID","MTS","AMOUNT","RATE_DAILY","PERIOD"]
[315455335,1709045441413,-509.88522936,0.00019178,2]
[315455336,1709045441423,-225.81105283,0.00019178,2]
[315455337,1709045441433,-687.96,0.00019178,2]
[315455338,1709045441443,-495.61212969,0.00019178,2]
[315455339,1709045441452,-400.32969916,0.00019178,2]
[315455340,1709045441461,-1009.24,0.00019178,2]
[315455341,1709045441471,-500.0,0.00019178,2]
[315455342,1709045441480,-500.0,0.00019178,2]
[315455343,1709045441490,-1452.98,0.00019178,2]
[315455344,1709045441498,-241.11026349,0.00019178,2]
[315455345,1709045441508,-500.0,0.00019178,2]
[315455346,1709045441518,-1000.0,0.00019178,2]
[315455347,1709045441527,-500.0,0.00019178,2]
[315455348,1709045441537,-500.0,0.00019178,2]
[315455349,1709045441546,-500.0,0.00019178,2]
[315455350,1709045441558,-500.82063476,0.00019178,2]
[315455351,1709045441567,-522.5209825,0.00019178,2]
[315455352,1709045441576,-500.0,0.00019178,2]
[315455353,1709045441585,-500.0,0.00019178,2]
[315455354,1709045441594,-500.0,0.00019178,2]
[315455355,1709045441603,-500.0,0.00019178,2]
[315455356,1709045441613,-500.0,0.00019178,2]
[315455357,1709045441623,-500.0,0.00019178,2]
[315455358,1709045441632,-500.0,0.00019178,2]
[315455359,1709045441642,-500.0,0.00019178,2]
[315455360,1709045441651,-500.0,0.00019178,2]
[315455361,1709045441660,-500.65277545,0.00019178,2]
[315455362,1709045441670,-500.0,0.00019178,2]
[315455363,1709045441680,-500.0,0.00019178,2]
[315455364,1709045441689,-500.0,0.00019178,2]
[315455365,1709045441699,-500.0,0.00019178,2]
[315455366,1709045441710,-500.0,0.00019178,2]
[315455367,1709045441720,-500.0,0.00019178,2]
[315455368,1709045441729,-515.4162061,0.00019178,2]
[315455369,1709045441739,-500.0,0.00019178,2]
[315455370,1709045441749,-618.37454632,0.00019178,2]
[315455371,1709045441759,-500.0,0.00019178,2]
[315455372,1709045441769,-501.12706915,0.00019178,2]
[315455373,1709045441779,-500.0,0.00019178,2]
[315455374,1709045441789,-500.32824519,0.00019178,2]
[315455375,1709045441799,-500.11571016,0.00019178,2]
[315455376,1709045441814,-500.0,0.00019178,2]
[315455377,1709045441824,-500.0,0.00019178,2]
[315455378,1709045441833,-500.0,0.00019178,2]
[315455379,1709045441842,-171.73712487,0.00019178,2]
[315455380,1709045441852,-1778.3,0.00019178,2]
[315455381,1709045441862,-508.23691754,0.00019178,2]
[315455382,1709045441872,-310.0,0.00019178,2]
[315455383,1709045441881,-2784.6,0.00019178,2]
[315455384,1709045441891,-240.1435452,0.00019178,2]
[315455385,1709045442038,-159.02038948,0.00019178,2]
[315455386,1709045442048,-500.0,0.00019178,2]
[315455387,1709045442061,-500.0,0.00019178,2]
[315455388,1709045442070,-500.0,0.00019178,2]
[315455389,1709045442080,-500.0,0.00019178,2]
[315455390,1709045442089,-500.0,0.00019178,2]
[315455391,1709045442099,-500.0,0.00019178,2]
[315455392,1709045442108,-500.0,0.00019178,2]
[315455393,1709045442117,-500.52309887,0.00019178,2]
[315455394,1709045442126,-902.6,0.00019178,2]
[315455395,1709045442135,-500.0,0.00019178,2]
[315455396,1709045442144,-1000.0,0.00019178,2]
[315455397,1709045442153,-500.0,0.00019178,2]
[315455398,1709045442162,-500.0,0.00019178,2]
[315455399,1709045442172,-500.0,0.00019178,2]
[315455400,1709045442181,-500.0,0.00019178,2]
[315455401,1709045442191,-500.0,0.00019178,2]
[315455402,1709045442200,-500.0,0.00019178,2]
[315455403,1709045442209,-341.5224866,0.00019178,2]
[315455404,1709045442219,-500.0,0.00019178,2]
[315455405,1709045442228,-500.0,0.00019178,2]
[315455406,1709045442237,-500.0,0.00019178,2]
[315455407,1709045442246,-500.0,0.00019178,2]
[315455408,1709045442256,-500.0,0.00019178,2]
[315455409,1709045442265,-500.0,0.00019178,2]
[315455410,1709045442274,-500.0,0.00019178,2]
[315455411,1709045442284,-500.0,0.00019178,2]
[315455412,1709045442293,-500.0,0.00019178,2]
[315455413,1709045442305,-500.0,0.00019178,2]
[315455414,1709045442314,-500.0,0.00019178,2]
[315455415,1709045442323,-500.0,0.00019178,2]
[315455416,1709045442333,-500.0,0.00019178,2]
[315455417,1709045442342,-500.0,0.00019178,2]
[315455418,1709045442352,-500.0,0.00019178,2]
[315455419,1709045442361,-500.0,0.00019178,2]
[315455420,1709045442371,-629.6441881,0.00019178,2]
[315455421,1709045442381,-500.0,0.00019178,2]
[315455422,1709045442391,-500.0,0.00019178,2]
[315455423,1709045442401,-500.0,0.00019178,2]
[315455424,1709045442410,-1631.71,0.00019178,2]
[315455425,1709045442420,-252.75507226,0.00019178,2]
[315455426,1709045442429,-500.0,0.00019178,2]
[315455427,1709045442438,-640.88483016,0.00019178,2]
[315455428,1709045442448,-500.0,0.00019178,2]
[315455429,1709045442457,-500.0,0.00019178,2]
[315455430,1709045442467,-500.0,0.00019178,2]
[315455431,1709045442476,-500.0,0.00019178,2]
[315455432,1709045442485,-601.31095344,0.00019178,2]
[315455433,1709045442494,-500.0,0.00019178,2]
[315455434,1709045442505,-500.0,0.00019178,2]
[315455435,1709045442514,-500.0,0.00019178,2]
[315455436,1709045442524,-500.0,0.00019178,2]
[315455437,1709045442533,-500.0,0.00019178,2]
[315455438,1709045442542,-500.0,0.00019178,2]
[315455439,1709045442556,-500.0,0.00019178,2]
[315455440,1709045442565,-1878.03,0.00019178,2]
[315455441,1709045442574,-500.0,0.00019178,2]
[315455442,1709045442584,-500.0,0.00019178,2]
[315455443,1709045442593,-500.0,0.00019178,2]
[315455444,1709045442603,-500.0,0.00019178,2]
[315455445,1709045442612,-500.0,0.00019178,2]
[315455446,1709045442621,-500.0,0.00019178,2]
[315455447,1709045442632,-521.78939552,0.00019178,2]
[315455448,1709045442641,-500.0,0.00019178,2]
[315455449,1709045442651,-500.0,0.00019178,2]
[315455450,1709045442660,-500.0,0.00019178,2]
[315455451,1709045442670,-500.0,0.00019178,2]
[315455452,1709045442681,-500.0,0.00019178,2]
[315455453,1709045442692,-500.0,0.00019178,2]
[315455454,1709045442702,-1753.1,0.00019178,2]
[315455455,1709045442715,-500.0,0.00019178,2]
[315455456,1709045442725,-451.77238634,0.00019178,2]
[315455457,1709045442735,-500.0,0.00019178,2]
[315455458,1709045442744,-500.0,0.00019178,2]
[315455459,1709045442753,-500.0,0.00019178,2]
[315455460,1709045442762,-500.0,0.00019178,2]
[315455461,1709045442772,-500.0,0.00019178,2]
[315455462,1709045442781,-500.0,0.00019178,2]
[315455463,1709045442792,-500.0,0.00019178,2]
[315455464,1709045442802,-500.0,0.00019178,2]
[315455466,1709045442814,-500.0,0.00019178,2]
[315455467,1709045442823,-500.0,0.00019178,2]
[315455468,1709045442834,-500.0,0.00019178,2]
[315455470,1709045442855,-500.0,0.00019178,2]
[315455474,1709045442904,-500.0,0.00019178,2]
[315455476,1709045442914,-1720.61,0.00019178,2]
[315455478,1709045442924,-500.0,0.00019178,2]
[315455481,1709045442934,-500.0,0.00019178,2]
[315455482,1709045442943,-500.0,0.00019178,2]
[315455485,1709045442953,-500.0,0.00019178,2]
[315455487,1709045442963,-1043.57,0.00019178,2]
[315455488,1709045442971,-500.0,0.00019178,2]
[315455491,1709045442981,-500.0,0.00019178,2]
[315455492,1709045442991,-500.0,0.00019178,2]
[315455495,1709045443000,-500.0,0.00019178,2]
[315455496,1709045443010,-500.0,0.00019178,2]
[315455498,1709045443019,-582.24951827,0.00019178,2]
[315455499,1709045443028,-788.37,0.00019178,2]
[315455500,1709045443040,-500.0,0.00019178,2]
[315455501,1709045443049,-500.0,0.00019178,2]
[315455502,1709045443060,-500.0,0.00019178,2]
[315455503,1709045443069,-500.0,0.00019178,2]
[315455504,1709045443078,-501.3868524,0.00019178,2]
[315455505,1709045443087,-500.0,0.00019178,2]
[315455506,1709045443096,-500.0,0.00019178,2]
[315455507,1709045443105,-500.0,0.00019178,2]
[315455508,1709045443114,-500.0,0.00019178,2]
[315455509,1709045443123,-500.0,0.00019178,2]
[315455510,1709045443132,-500.0,0.00019178,2]
[315455512,1709045443141,-895.43,0.00019178,2]
[315455514,1709045443151,-500.0,0.00019178,2]
[315455516,1709045443160,-4078.81,0.00019178,2]
[315455518,1709045443169,-684.46,0.00019178,2]
[315455520,1709045443178,-932.87,0.00019178,2]
[315455522,1709045443187,-500.0,0.00019178,2]
[315455524,1709045443196,-500.0,0.00019178,2]
[315455526,1709045443206,-500.0,0.00019178,2]
[315455528,1709045443215,-501.22080587,0.00019178,2]
[315455530,1709045443225,-1035.01,0.00019178,2]
[315455532,1709045443235,-340.24388928,0.00019178,2]
[315455534,1709045443244,-500.0,0.00019178,2]
[315455536,1709045443255,-500.0,0.00019178,2]
[315455538,1709045443265,-3186.54,0.00019178,2]
[315455540,1709045443274,-500.0,0.00019178,2]
[315455542,1709045443284,-500.0,0.00019178,2]
[315455544,1709045443293,-501.06312451,0.00019178,2]
[315455546,1709045443302,-500.67580525,0.00019178,2]
[315455548,1709045443315,-1264.04,0.00019178,2]
[315455550,1709045443324,-500.0,0.00019178,2]
[315455552,1709045443334,-500.0,0.00019178,2]
[315455554,1709045443343,-500.0,0.00019178,2]
[315455556,1709045443352,-500.0,0.00019178,2]
[315455558,1709045443363,-862.76,0.00019178,2]
[315455560,1709045443373,-500.0,0.00019178,2]
[315455562,1709045443383,-2904.34,0.00019178,2]
[315455564,1709045443392,-500.0,0.00019178,2]
[315455566,1709045443402,-500.0,0.00019178,2]
[315455568,1709045443411,-500.0,0.00019178,2]
[315455570,1709045443421,-2131.1,0.00019178,2]
[315455572,1709045443430,-2118.34,0.00019178,2]
[315455574,1709045443438,-500.0,0.00019178,2]
[315455576,1709045443448,-500.0,0.00019178,2]
[315455578,1709045443457,-500.0,0.00019178,2]
[315455580,1709045443466,-500.0,0.00019178,2]
[315455582,1709045443476,-500.0,0.00019178,2]
[315455584,1709045443484,-500.0,0.00019178,2]
[315455586,1709045443493,-500.0,0.00019178,2]
[315455588,1709045443502,-500.0,0.00019178,2]
[315455590,1709045443511,-776.29,0.00019178,2]
[315455592,1709045443519,-500.0,0.00019178,2]
[315455594,1709045443529,-500.0,0.00019178,2]
[315455596,1709045443538,-500.0,0.00019178,2]
[315455598,1709045443547,-500.0,0.00019178,2]
[315455599,1709045443557,-10448.94,0.00019178,2]
[315455602,1709045443567,-2468.02,0.00019178,2]
[315455604,1709045443576,-500.0,0.00019178,2]
[315455607,1709045443585,-502.22643844,0.00019178,2]
[315455609,1709045443594,-298.46954899,0.00019178,2]
[315455612,1709045443603,-500.0,0.00019178,2]
[315455614,1709045443612,-2093.03,0.00019178,2]
[315455617,1709045443621,-5461.5,0.00019178,2]
[315455620,1709045443630,-500.0,0.00019178,2]
[315455622,1709045443639,-334.51167567,0.00019178,2]
[315455624,1709045443648,-500.0,0.00019178,2]
[315455626,1709045443657,-500.0,0.00019178,2]
[315455628,1709045443666,-500.0,0.00019178,2]
[315455630,1709045443675,-739.59,0.00019178,2]
[315455632,1709045443684,-443.86900434,0.00019178,2]
[315455634,1709045443693,-500.0,0.00019178,2]
[315455636,1709045443704,-500.0,0.00019178,2]
[315455638,1709045443713,-500.0,0.00019178,2]
[315455640,1709045443723,-500.0,0.00019178,2]
[315455642,1709045443732,-500.0,0.00019178,2]
[315455644,1709045443741,-500.0,0.00019178,2]
[315455646,1709045443750,-503.86862046,0.00019178,2]
[315455648,1709045443759,-500.0,0.00019178,2]
[315455650,1709045443770,-500.0,0.00019178,2]
[315455652,1709045443779,-500.0,0.00019178,2]
[315455654,1709045443789,-22165.06,0.00019178,2]
[315455656,1709045443799,-597.89,0.00019178,2]
[315455658,1709045443811,-226.05511992,0.00019178,2]
[315455660,1709045443820,-500.0,0.00019178,2]
[315455662,1709045443829,-5306.08,0.00019178,2]
[315455664,1709045443838,-500.0,0.00019178,2]
[315455666,1709045443847,-500.0,0.00019178,2]
[315455668,1709045443856,-500.0,0.00019178,2]
[315455670,1709045443865,-502.16545605,0.00019178,2]
[315455672,1709045443874,-500.0,0.00019178,2]
[315455674,1709045443884,-209.21007188,0.00019178,2]
[315455676,1709045443893,-500.0,0.00019178,2]
[315455678,1709045443902,-1766.2,0.00019178,2]
[315455680,1709045443912,-155.0,0.00019178,2]
[315455682,1709045443921,-500.0,0.00019178,2]
[315455684,1709045443930,-500.0,0.00019178,2]
[315455686,1709045443939,-908.93,0.00019178,2]
[315455688,1709045443948,-908.93,0.00019178,2]
[315455690,1709045443957,-500.49030211,0.00019178,2]
[315455692,1709045443966,-908.93,0.00019178,2]
[315455694,1709045443975,-908.93,0.00019178,2]
[315455696,1709045443984,-908.93,0.00019178,2]
[315455698,1709045443993,-908.93,0.00019178,2]
[315455701,1709045444003,-908.93,0.00019178,2]
[315455702,1709045444011,-908.93,0.00019178,2]
[315455704,1709045444020,-908.93,0.00019178,2]
[315455706,1709045444029,-908.93,0.00019178,2]
[315455708,1709045444038,-908.93,0.00019178,2]
[315455710,1709045444048,-500.0,0.00019178,2]
[315455712,1709045444058,-500.0,0.00019178,2]
[315455715,1709045444068,-500.0,0.00019178,2]
[315455716,1709045444077,-1649.49,0.00019178,2]
[315455718,1709045444087,-500.0,0.00019178,2]
[315455720,1709045444096,-7474.39,0.00019178,2]
[315455722,1709045444105,-500.0,0.00019178,2]
[315455725,1709045444115,-500.0,0.00019178,2]
[315455726,1709045444124,-500.0,0.00019178,2]
[315455728,1709045444134,-500.0,0.00019178,2]
[315455730,1709045444144,-4870.97,0.00019178,2]
[315455732,1709045444155,-500.0,0.00019178,2]
[315455734,1709045444164,-667.21,0.00019178,2]
[315455745,1709045444258,-21141.42,0.00019178,2]
[315455748,1709045444279,-500.0,0.00019178,2]
[315455750,1709045444289,-3968.63,0.00019178,2]
[315455751,1709045444299,-3952.29,0.00019178,2]
[315455754,1709045444310,-500.0,0.00019178,2]
[315455756,1709045444319,-282.6196593,0.00019178,2]
[315455758,1709045444328,-694.82180753,0.00019178,2]
[315455760,1709045444337,-188.594824,0.00019178,2]
[315455762,1709045444347,-166.666666,0.00019178,2]
[315455763,1709045444355,-181.356093,0.00019178,2]
[315455766,1709045444365,-224.54443973,0.00019352,2]
[315455768,1709045444374,-238.47583384,0.00019451,2]
[315455770,1709045444384,-1519.40144155,0.00019451,2]
[315455772,1709045444394,-908.93,0.00019451,2]
[315455774,1709045444403,-908.93,0.00019451,2]
[315455775,1709045444412,-908.93,0.00019451,2]
[315455777,1709045444422,-908.93,0.00019451,2]
[315455779,1709045444431,-500.0,0.00019452,2]
[315455781,1709045444440,-500.0,0.00019452,2]
[315455783,1709045444450,-292.53384056,0.00019452,2]
[315455785,1709045444459,-687.96,0.00019452,2]
[315455788,1709045444469,-1009.24,0.00019452,2]
[315455789,1709045444477,-373.72715939,0.00019452,2]
[315455791,1709045444486,-500.0,0.00019452,2]
[315455792,1709045444495,-1452.98,0.00019452,2]
[315455793,1709045444503,-336.834071,0.00019452,2]
[315455794,1709045444512,-500.0,0.00019452,2]
[315455795,1709045444521,-500.0,0.00019452,2]
[315455796,1709045444530,-500.0,0.00019452,2]
[315455797,1709045444538,-500.0,0.00019452,2]
[315455798,1709045444548,-500.0,0.00019452,2]
[315455799,1709045444556,-618.23,0.00019452,2]
[315455800,1709045444566,-500.0,0.00019452,2]
[315455801,1709045444574,-500.0,0.00019452,2]
[315455802,1709045444583,-500.0,0.00019452,2]
[315455803,1709045444591,-500.0,0.00019452,2]
[315455804,1709045444600,-500.0,0.00019452,2]
[315455805,1709045444609,-500.0,0.00019452,2]
[315455806,1709045444618,-500.0,0.00019452,2]
[315455807,1709045444626,-500.0,0.00019452,2]
[315455808,1709045444635,-500.35101391,0.00019452,2]
[315455809,1709045444644,-189.39254927,0.00019452,2]
[315455810,1709045444653,-563.60361199,0.00019452,2]
[315455812,1709045444662,-500.0,0.00019452,2]
[315455814,1709045444671,-500.0,0.00019452,2]
[315455816,1709045444683,-500.0,0.00019452,2]
[315455818,1709045444692,-1778.3,0.00019452,2]
[315455820,1709045444701,-2784.6,0.00019452,2]
[315455822,1709045444711,-500.0,0.00019452,2]
[315455824,1709045444721,-210.59816599,0.00019452,2]
[315455826,1709045444730,-500.0,0.00019452,2]
[315455828,1709045444738,-500.0,0.00019452,2]
[315455830,1709045444748,-228.67540805,0.00019452,2]
[315455832,1709045444757,-500.0,0.00019452,2]
[315455834,1709045444766,-902.6,0.00019452,2]
[315455836,1709045444774,-500.0,0.00019452,2]
[315455838,1709045444784,-160.72308855,0.00019452,2]
[315455839,1709045444794,-500.0,0.00019452,2]
[315455841,1709045444803,-500.0,0.00019452,2]
[315455844,1709045444814,-211.14111785,0.00019452,2]
[315455846,1709045444825,-500.0,0.00019452,2]
[315455848,1709045444835,-500.0,0.00019452,2]
[315455849,1709045444845,-500.0,0.00019452,2]
[315455852,1709045444854,-500.0,0.00019452,2]
[315455854,1709045444863,-500.0,0.00019452,2]
[315455855,1709045444872,-500.0,0.00019452,2]
[315455857,1709045444882,-500.0,0.00019452,2]
[315455859,1709045444891,-500.0,0.00019452,2]
[315455861,1709045444900,-500.0,0.00019452,2]
[315455863,1709045444910,-500.0,0.00019452,2]
[315455865,1709045444919,-332.96266371,0.00019452,2]
[315455867,1709045444928,-500.0,0.00019452,2]
[315455869,1709045444937,-337.0351218,0.00019452,2]
[315455871,1709045444947,-373.58267349,0.00019452,2]
[315455873,1709045444956,-500.0,0.00019452,2]
[315455876,1709045444966,-500.0,0.00019452,2]
[315455878,1709045444975,-1631.71,0.00019452,2]
[315455880,1709045444985,-500.0,0.00019452,2]
[315455882,1709045444994,-500.0,0.00019452,2]
[315455884,1709045445003,-500.0,0.00019452,2]
[315455885,1709045445013,-502.85792086,0.00019452,2]
[315455887,1709045445022,-500.0,0.00019452,2]
[315455889,1709045445031,-500.0,0.00019452,2]
[315455892,1709045445041,-500.0,0.00019452,2]
[315455893,1709045445050,-500.0,0.00019452,2]
[315455896,1709045445062,-502.36541284,0.00019452,2]
[315455897,1709045445071,-500.0,0.00019452,2]
[315455900,1709045445081,-500.0,0.00019452,2]
[315455901,1709045445091,-1878.03,0.00019452,2]
[315455903,1709045445100,-500.0,0.00019452,2]
[315455905,1709045445109,-500.0,0.00019452,2]
[315455907,1709045445118,-500.0,0.00019452,2]
[315455910,1709045445127,-500.0,0.00019452,2]
[315455912,1709045445135,-500.0,0.00019452,2]
[315455913,1709045445145,-500.0,0.00019452,2]
[315455915,1709045445153,-1753.1,0.00019452,2]
[315455917,1709045445163,-500.0,0.00019452,2]
[315455919,1709045445172,-500.0,0.00019452,2]
[315455921,1709045445181,-500.0,0.00019452,2]
[315455924,1709045445192,-501.95643743,0.00019452,2]
[315455926,1709045445201,-501.21301573,0.00019452,2]
[315455927,1709045445210,-500.0,0.00019452,2]
[315455929,1709045445219,-500.0,0.00019452,2]
[315455931,1709045445229,-500.0,0.00019452,2]
[315455933,1709045445239,-395.16181797,0.00019452,2]
[315455935,1709045445249,-500.0,0.00019452,2]
[315455937,1709045445259,-376.53396052,0.00019452,2]
[315455940,1709045445269,-500.0,0.00019452,2]
[315455941,1709045445278,-1720.61,0.00019452,2]
[315455944,1709045445287,-500.0,0.00019452,2]
[315455945,1709045445297,-426.50033035,0.00019452,2]
[315455947,1709045445308,-500.0,0.00019452,2]
[315455950,1709045445317,-500.0,0.00019452,2]
[315455952,1709045445327,-1043.57,0.00019452,2]
[315455954,1709045445336,-500.0,0.00019452,2]
[315455956,1709045445346,-500.0,0.00019452,2]
[315455958,1709045445355,-500.0,0.00019452,2]
[315455960,1709045445365,-500.0,0.00019452,2]
[315455962,1709045445375,-500.0,0.00019452,2]
[315455964,1709045445385,-788.37,0.00019452,2]
[315455966,1709045445395,-500.0,0.00019452,2]
[315455967,1709045445404,-500.0,0.00019452,2]
[315455970,1709045445414,-500.0,0.00019452,2]
[315455971,1709045445423,-190.12652069,0.00019452,2]
[315455973,1709045445432,-500.0,0.00019452,2]
[315455975,1709045445442,-500.0,0.00019452,2]
[315455977,1709045445452,-500.0,0.00019452,2]
[315455980,1709045445461,-500.0,0.00019452,2]
[315455982,1709045445470,-500.0,0.00019452,2]
[315455984,1709045445480,-500.0,0.00019452,2]
[315455986,1709045445490,-895.43,0.00019452,2]
[315455988,1709045445499,-306.64800142,0.00019452,2]
[315455990,1709045445508,-4078.81,0.00019452,2]
[315455992,1709045445518,-684.46,0.00019452,2]
[315455993,1709045445527,-932.87,0.00019452,2]
[315455995,1709045445536,-500.0,0.00019452,2]
[315455997,1709045445546,-500.0,0.00019452,2]
[315455999,1709045445557,-1035.01,0.00019452,2]
[315456002,1709045445567,-500.0,0.00019452,2]
[315456004,1709045445576,-500.0,0.00019452,2]
[315456006,1709045445585,-500.0,0.00019452,2]
[315456008,1709045445596,-3186.54,0.00019452,2]
[315456010,1709045445605,-241.83685928,0.00019452,2]
[315456012,1709045445615,-1264.04,0.00019452,2]
[315456014,1709045445624,-500.0,0.00019452,2]
[315456016,1709045445634,-500.0,0.00019452,2]
[315456018,1709045445643,-500.0,0.00019452,2]
[315456020,1709045445652,-862.76,0.00019452,2]
[315456022,1709045445662,-500.0,0.00019452,2]
[315456024,1709045445671,-2904.34,0.00019452,2]
[315456026,1709045445682,-500.0,0.00019452,2]
[315456028,1709045445691,-501.23732277,0.00019452,2]
[315456030,1709045445701,-500.0,0.00019452,2]
[315456032,1709045445714,-2131.1,0.00019452,2]
[315456034,1709045445728,-2118.34,0.00019452,2]
[315456037,1709045445738,-500.0,0.00019452,2]
[315456040,1709045445747,-500.0,0.00019452,2]
[315456043,1709045445757,-500.0,0.00019452,2]
[315456046,1709045445766,-500.0,0.00019452,2]
[315456048,1709045445775,-500.0,0.00019452,2]
[315456051,1709045445785,-500.0,0.00019452,2]
[315456054,1709045445795,-500.0,0.00019452,2]
[315456057,1709045445805,-500.0,0.00019452,2]
[315456060,1709045445815,-776.29,0.00019452,2]
[315456062,1709045445824,-500.0,0.00019452,2]
[315456064,1709045445833,-500.0,0.00019452,2]
[315456066,1709045445842,-500.0,0.00019452,2]
[315456069,1709045445851,-500.0,0.00019452,2]
[315456072,1709045445861,-10448.94,0.00019452,2]
[315456074,1709045445869,-2468.02,0.00019452,2]
[315456076,1709045445879,-500.0,0.00019452,2]
[315456078,1709045445888,-2093.03,0.00019452,2]
[315456080,1709045445898,-5461.5,0.00019452,2]
[315456082,1709045445907,-500.0,0.00019452,2]
[315456084,1709045445916,-551.11345887,0.00019452,2]
[315456086,1709045445925,-500.0,0.00019452,2]
[315456088,1709045445934,-500.0,0.00019452,2]
[315456090,1709045445943,-739.59,0.00019452,2]
[315456092,1709045445953,-500.0,0.00019452,2]
[315456094,1709045445962,-500.0,0.00019452,2]
[315456096,1709045445971,-500.0,0.00019452,2]
[315456098,1709045445980,-500.0,0.00019452,2]
[315456100,1709045445989,-500.0,0.00019452,2]
[315456102,1709045445999,-500.0,0.00019452,2]
[315456104,1709045446008,-500.0,0.00019452,2]
[315456106,1709045446017,-500.0,0.00019452,2]
[315456108,1709045446026,-500.0,0.00019452,2]
[315456110,1709045446036,-22165.06,0.00019452,2]
[315456112,1709045446044,-597.89,0.00019452,2]
[315456114,1709045446053,-500.0,0.00019452,2]
[315456116,1709045446065,-5306.08,0.00019452,2]
[315456118,1709045446074,-500.0,0.00019452,2]
[315456120,1709045446083,-500.0,0.00019452,2]
[315456122,1709045446092,-500.0,0.00019452,2]
[315456124,1709045446101,-500.0,0.00019452,2]
[315456126,1709045446110,-1766.2,0.00019452,2]
[315456128,1709045446119,-500.0,0.00019452,2]
[315456130,1709045446129,-500.0,0.00019452,2]
[315456132,1709045446138,-183.67121497,0.00019452,2]
[315456134,1709045446147,-298.05466901,0.00019452,2]
[315456136,1709045446156,-500.0,0.00019452,2]
[315456138,1709045446167,-1649.49,0.00019452,2]
[315456148,1709045446177,-500.0,0.00019452,2]
[315456150,1709045446268,-7474.39,0.00019452,2]
[315456152,1709045446278,-500.0,0.00019452,2]
[315456154,1709045446287,-249.69840039,0.00019452,2]
[315456156,1709045446296,-500.0,0.00019452,2]
[315456158,1709045446306,-500.0,0.00019452,2]
[315456160,1709045446316,-4870.97,0.00019452,2]
[315456162,1709045446325,-500.0,0.00019452,2]
[315456164,1709045446335,-667.21,0.00019452,2]
[315456166,1709045446344,-21141.42,0.00019452,2]
[315456168,1709045446354,-500.0,0.00019452,2]
[315456171,1709045446363,-3968.63,0.00019452,2]
[315456173,1709045446373,-3952.29,0.00019452,2]
[315456174,1709045446382,-500.0,0.00019452,2]
[315456177,1709045446391,-153.0,0.000195,2]
[315456178,1709045446401,-153.0,0.000195,2]
[315456181,1709045446410,-500.0,0.0001956,2]
[315456183,1709045446421,-224.54443973,0.00019626,2]
[315456185,1709045446431,-166.666666,0.00019627,2]
[315456187,1709045446440,-200.6117409,0.0001963,2]
[315456189,1709045446450,-500.0,0.00019669,2]
[315456191,1709045446459,-908.93,0.00019695,2]
[315456193,1709045446469,-153.0,0.000197,2]
[315456195,1709045446478,-908.93,0.00019725,2]
[315456196,1709045446488,-908.93,0.00019725,2]
[315456198,1709045446496,-908.93,0.00019725,2]
[315456200,1709045446506,-500.0,0.00019726,2]
[315456202,1709045446515,-500.0,0.00019726,2]
[315456203,1709045446524,-687.96,0.00019726,2]